Cogmind - Beta 14 @@@ ROGUE MODE // 2025.03.12 @ 20:55:29 Player: GiggleBox Result: Destroyed by G-47 Trooper with Particle Gun Performance ------------- Evolutions (1) 500 Regions Visited (3) 600 Robots Destroyed (36) 180 Value Destroyed (821) 821 Prototype IDs (2) 40 Alien Tech Used (0) 0 Bonus (0) 0 TOTAL SCORE: 2141 Bonus ------- None Cogmind --------- Core Integrity 0/400 Matter 252/300 Energy 230/300 System Corruption 0% Temperature Cool (9) Movement Core (100) Ox1 Location -9/Storage Parts ------- > --- POWER (2) -------- (None) > --- PROPULSION (2) --- (None) > --- UTILITY (3) ------ Heat Sink Compact Battery Improved Targeting Computer > --- WEAPON (2) ------- Heavy EM Shotgun > --- INVENTORY (5) ---- (None) Peak State ------------ > --- POWER ------------ Light Ion Engine Light Ion Engine > --- PROPULSION ------- Improved Flight Unit Improved Flight Unit > --- UTILITY ---------- Compact Battery Compact Battery Improved Targeting Computer > --- WEAPON ----------- Heavy EM Shotgun Heavy EM Shotgun > --- INVENTORY -------- Datajack [Rating: 24] Favorites ----------- Power Light Ion Engine Engine Light Ion Engine Propulsion Compact Wheel Treads Armored Treads Leg Titanium Leg Wheel Compact Wheel Flight Unit Improved Flight Unit Utility Huge Storage Unit Device Sensor Array Storage Huge Storage Unit Processor Signal Interpreter Protection Backup Plating I Weapon Assault Rifle Energy Gun EM Pulse Gun Ballistic Gun Assault Rifle Launcher Grenade Launcher Special Melee Weapon Datajack Build | -11 -10 -9 -9 ------- Run | Yrd Mat Mat Sto Slots Evolved 2 | . . 2 . Power 1 | . . 1 . Propulsion . | . . . . Utility 1 | . . 1 . Weapon . | . . . . Parts Attached 54 | 6 6 40 2 Power 7 | 1 . 5 1 Engine 7 | 1 . 5 1 Core . | . . . . Reactor . | . . . . Propulsion 16 | 2 . 14 . Treads 6 | . . 6 . Leg 2 | . . 2 . Wheel 2 | 2 . . . Hover . | . . . . Flight 6 | . . 6 . Utility 10 | 1 1 8 . Device 2 | . . 2 . Storage 5 | 1 1 3 . Processor 2 | . . 2 . Hackware . | . . . . Protection 1 | . . 1 . Artifact . | . . . . Weapon 21 | 2 5 13 1 Energy Gun 8 | . 1 6 1 Energy Cannon . | . . . . Ballistic Gun 6 | 2 2 2 . Ballistic Cannon . | . . . . Launcher 5 | . 2 3 . Special Weapon . | . . . . Impact Weapon . | . . . . Slashing Weapon . | . . . . Piercing Weapon . | . . . . Special Melee Weapon 2 | . . 2 . Unidentified Prototypes 2 | . . 2 . Parts Lost 16 | . . 10 6 Power 5 | . . 3 2 Propulsion 4 | . . 2 2 Utility 2 | . . 2 . Weapon 5 | . . 3 2 Highest Loss Streak 6 | . . 5 6 To Critical Strikes 1 | . . 1 . Average Slot Usage (%) 72 | . 85 69 83 Engine 10 | . 14 10 11 Treads 4 | . . 5 . Leg 2 | . . 2 . Wheel 5 | . 28 . . Flight 2 | . . 3 18 Device 4 | . . 5 11 Storage 12 | . 14 12 11 Processor 5 | . . 6 11 Protection 2 | . . 2 . Energy Gun 4 | . 3 4 11 Ballistic Gun 15 | . 22 14 . Peak Build Rating 24 | 6 7 24 18 Average Rating 9 | 4 6 9 17 On Entrance 7 | . 6 6 18 Naked Turns . | . . . . Heaviest Build 91 | 12 87 91 10 Greatest Support 40 | 32 32 40 10 Greatest Overweight (x) 30 | . 2 30 1 Average Overweight (x) 2 | . 1 4 . Largest Inventory Capacity 25 | 8 25 25 5 Average Capacity 21 | 6 19 22 5 Most Carried 5 | 2 5 4 2 Average Carried 1 | . 2 1 1 Final Capacity 25 | 8 25 5 5 Final Carried 5 | 1 5 2 . Class Distribution -------------------- 100% | Mutant Dominant Class ---------------- Mutant | -10/Materials Mutant | -9/Materials Mutant | -9/Storage Resources | -11 -10 -9 -9 ----------- Run | Yrd Mat Mat Sto Matter Collected 935 | 187 157 545 46 Remotely . | . . . . Salvage Created 965 | . 226 521 218 Parts 74 | . 13 42 19 Haulers Intercepted . | . . . . Recyclers Shooed 1 | . 1 . . Parts Field Recycled . | . . . . Retrieved Matter . | . . . . Parts Self-Destructed . | . . . . Prevented . | . . . . Kills | -11 -10 -9 -9 ------- Run | Yrd Mat Mat Sto Combat Hostiles Destroyed 24 | . 6 14 4 Guns 17 | . . 13 4 AOE 7 | . 6 1 . Classes Destroyed 8 | . 6 2 . Worker 4 | . . 3 1 Builder 1 | . 1 . . Recycler 1 | . 1 . . Operator 2 | . 1 1 . Watcher 4 | . 1 3 . Swarmer 10 | . 2 8 . Grunt 9 | . 4 4 1 Sentry 5 | . . 2 3 Best Kill Streak 5 | . 4 4 5 Combat Bots Only 4 | . 2 4 4 Max Kills in Single Turn 2 | . 2 2 1 Gunslinging 1 | . . 1 . Exploded 1 | . 1 1 . Melee . | . . . . Uniques/NPCs Destroyed . | . . . . Combat | -11 -10 -9 -9 -------- Run | Yrd Mat Mat Sto Hostile Shots Fired 196 | . 14 151 31 Missed 59 | . 11 42 6 Damage Taken 2030 | . 51 1532 447 Core 434 | . 23 244 167 Absorbed by Shields . | . . . . Core Remaining (%) 95 | 100 90 . . Volleys Fired 87 | . 21 52 14 Largest 2 | . 2 2 1 Hottest 100 | . 60 100 50 Shots Fired 125 | . 39 72 14 Gun 110 | . 30 66 14 Cannon . | . . . . Launcher 15 | . 9 6 . Special . | . . . . Kinetic 62 | . 29 33 . Thermal . | . . . . Explosive 15 | . 9 6 . Electromagnetic 48 | . 1 33 14 Robot Hit Streak 11 | . 3 11 6 Robot Miss Streak 6 | . 6 6 6 Penetration Max . | . . . . Secondary Targets 2 | . . 2 . Max Gunslinging Chain 1 | . . 1 . Shots Hit Robots 69 | . 14 46 9 Core Hits 62 | . 23 31 8 Critical Kills . | . . . . Critical Parts Destroyed . | . . . . Critical Strikes . | . . . . Melee Attacks 2 | . . 1 1 Impact . | . . . . Slashing . | . . . . Piercing . | . . . . Sneak Attacks 1 | . . 1 . Combat Hostiles . | . . . . Follow-up Attacks . | . . . . Damage Inflicted 2157 | . 792 1051 314 Guns 994 | . 164 662 168 Cannons . | . . . . Explosions 1156 | . 628 382 146 Melee . | . . . . Ramming 7 | . . 7 . Kinetic 451 | . 164 287 . Thermal 81 | . . 81 . Explosive 1075 | . 628 301 146 Electromagnetic 543 | . . 375 168 Impact . | . . . . Slashing . | . . . . Piercing . | . . . . Highest Corruption . | . . . . Average Corruption . | . . . . Corruption Purged . | . . . . Corruption Blocked . | . . . . Overload Shots . | . . . . Overflow Damage 132 | . 14 9 109 Projectiles . | . . . . Explosions 132 | . 14 9 109 Melee . | . . . . Knockbacks . | . . . . Impact . | . . . . Kinetic . | . . . . Secondary . | . . . . Self-Inflicted Damage 189 | . 18 83 88 Shots 6 | . 1 3 2 Rammed 2 | . . 2 . Targets Rammed 4 | . . 4 . Kicked 2 | . . 2 . Crushed . | . . . . Highest Temperature 249 | . 5 249 3 Average Temperature 63 | . 2 68 2 Received Heat Transfer 561 | . 15 420 126 Siege Activations . | . . . . Robots Corrupted . | . . . . Combat Hostiles . | . . . . Parts Fried . | . . . . Impact Corruptions . | . . . . Robots Melted . | . . . . Combat Hostiles . | . . . . Parts Melted . | . . . . Heat Transferred 100 | . . 100 . Parts Sabotaged . | . . . . Parts Stolen . | . . . . Parts Stripped . | . . . . Power Chain Reactions 1 | . . 1 . Alert | -11 -10 -9 -9 ------- Run | Yrd Mat Mat Sto Peak Influence 307 | . 307 258 257 Initial 108 | . . 53 108 Average 70 | . 173 48 162 Maximum Alert Level 1 | . 1 1 1 Low Security (%) 91 | 100 66 97 75 Level 1 8 | . 33 2 25 Level 2 . | . . . . Level 3 . | . . . . Level 4 . | . . . . Level 5 . | . . . . High Security . | . . . . Max Security . | . . . . Squads Dispatched 1 | . . . 1 Investigation . | . . . . Extermination . | . . . . Reinforcement 1 | . . . 1 Assault . | . . . . Garrison . | . . . . Intercept . | . . . . Searches Triggered . | . . . . Construction Impeded . | . . . . Haulers Reinforced . | . . . . Active Scanning Responses . | . . . . Cargo Convoy Interrupts . | . . . . Stealth | -11 -10 -9 -9 --------- Run | Yrd Mat Mat Sto Distress Signals 3 | . . 2 1 Communications Jammed . | . . . . Distress Signals . | . . . . Times Spotted 48 | . 14 26 8 Peak Tracking Total 8 | . 3 8 5 Tactical Retreats 3 | . 2 1 . Traps | -11 -10 -9 -9 ------- Run | Yrd Mat Mat Sto Traps Triggered . | . . . . Indirectly . | . . . . Trap Hack Attempts . | . . . . Triggered . | . . . . Disarmed . | . . . . Reprogrammed . | . . . . Reused . | . . . . Traps Extracted . | . . . . Installed . | . . . . Triggered . | . . . . Machines | -11 -10 -9 -9 ---------- Run | Yrd Mat Mat Sto Machines Disabled 4 | . 2 . 2 Max in Single Turn 2 | . 1 . 2 Machines Repaired . | . . . . Machines Dismantled . | . . . . Machines Sabotaged . | . . . . Overloaded Fab Kills . | . . . . Hacking | -11 -10 -9 -9 --------- Run | Yrd Mat Mat Sto Machines Accessed 4 | . 2 1 1 Terminals 3 | . 2 . 1 Fabricators . | . . . . Repair Stations . | . . . . Recycling Units 1 | . . 1 . Scanalyzers . | . . . . Garrison Access . | . . . . Total Hacks 4 | . 2 1 1 Successful 4 | . 2 1 1 Failed . | . . . . Catastrophic . | . . . . Database Lockouts . | . . . . Manual . | . . . . Terminals 3 | . 2 . 1 Fabricators . | . . . . Repair Stations . | . . . . Recycling Units 1 | . . 1 . Scanalyzers . | . . . . Garrison Access . | . . . . Terminal Hacks 3 | . 2 . 1 Record 1 | . 1 . . Alert Level 2 | . 1 . 1 Fabricator Hacks . | . . . . Repair Station Hacks . | . . . . Recycling Unit Hacks 1 | . . 1 . Report Inventory 1 | . . 1 . Scanalyzer . | . . . . Garrison Access Hacks . | . . . . Unauthorized Hacks . | . . . . Terminals . | . . . . Fabricators . | . . . . Repair Stations . | . . . . Recycling Units . | . . . . Scanalyzers . | . . . . Garrison Access . | . . . . Data Cores Recovered 1 | . . 1 . Used . | . . . . Hacking Detections 1 | . 1 . . Full Trace Events . | . . . . Feedback Events . | . . . . Feedback Blocked . | . . . . Robot Schematics Acquired . | . . . . Robots Built . | . . . . Authchips . | . . . . Time . | . . . . Total Robot Build Rating . | . . . . Part Schematics Acquired . | . . . . Parts Built . | . . . . Authchips . | . . . . Time . | . . . . Total Part Build Rating . | . . . . Parts Repaired . | . . . . Time . | . . . . Parts Recycled . | . . . . Recycled Matter . | . . . . Retrieved Matter . | . . . . Retrieved Components . | . . . . Parts Scanalyzed . | . . . . Part Schematics Acquired . | . . . . Parts Damaged . | . . . . Bothacking | -11 -10 -9 -9 ------------ Run | Yrd Mat Mat Sto Used RIF Installer . | . . . . Robots Hacked 1 | . . 1 . Non-combat 1 | . . 1 . Combat . | . . . . Robot Hacks Applied 1 | . . 1 . parse_system 1 | . . 1 . Relay Couplers Released . | . . . . Fabnet Peak Effective % . | . . . . Robots Rewired . | . . . . Allies Hacked . | . . . . Hacks Repelled . | . . . . Allies | -11 -10 -9 -9 -------- Run | Yrd Mat Mat Sto Total Allies . | . . . . Largest Group . | . . . . Highest-Rated Group . | . . . . Highest-Rated Ally . | . . . . Total Orders . | . . . . Ally Attacks . | . . . . Total Damage . | . . . . Kills . | . . . . Allies Corrupted . | . . . . Allies Melted . | . . . . Intel | -11 -10 -9 -9 ------- Run | Yrd Mat Mat Sto Robot Analysis Total . | . . . . Derelict Logs Recovered . | . . . . Drone Launches . | . . . . Drone Recoveries . | . . . . Exploration | -11 -10 -9 -9 ------------- Run | Yrd Mat Mat Sto Turns Passed 3041 | 79 513 2381 68 Spaces Moved 1087 | 72 368 550 97 Core 74 | 10 . 64 . Treads 220 | . . 220 . Legs 105 | . . 105 . Wheels 470 | 62 368 40 . Hover . | . . . . Flight 218 | . . 121 97 Fastest Speed 37 | 50 100 37 37 Average Speed 248 | 93 119 392 37 Slowest Speed 1550 | 100 130 1550 110 Overloaded Moves . | . . . . Propulsion Burnouts . | . . . . Robots Hopped . | . . . . Cave-ins Triggered . | . . . . Exploration Rate (%) 29 | 4 64 33 16 Regions Visited 3 Branch Regions 1 Pre-discovered Areas . | . . . . Known Exits Taken . | . . . . Unknown Exits Taken 3 | 1 1 1 . Scrap Searched . | . . . . Spaces Dug . | . . . . Terrain Destroyed 121 | . 39 65 17 Melee . | . . . . Projectile . | . . . . AOE 121 | . 39 65 17 Terrain Rammed . | . . . . Walls Destroyed . | . . . . Machines Disabled . | . . . . Actions | -11 -10 -9 -9 --------- Run | Yrd Mat Mat Sto Total 1303 | 84 402 703 114 Wait 2 | . . 2 . Move 1084 | 71 367 549 97 Hop . | . . . . Pick Up 41 | 7 5 29 . Fast Attach . | . . . . Attach 47 | 6 3 36 2 Detach 8 | . 2 6 . Swap 7 | . 3 4 . Drop 21 | . 1 20 . Fire 87 | . 21 52 14 Melee 2 | . . 1 1 Ram . | . . . . Kick 2 | . . 2 . Crush 2 | . . 2 . Escape Stasis . | . . . . Rewire . | . . . . Trap . | . . . . Miscellaneous . | . . . . Route ------- -11/Scrapyard -10/Materials (discovered 2 exits: *Mat x2) -9/Materials -9/Storage History --------- Turn | Location | Event 3 | -11/Scrapyard | Discovered new exit (range 15) 80 | -11/Scrapyard | Entered Materials 210 | -10/Materials | Discovered new exit (range 15) 303 | -10/Materials | Build established: Mutant 462 | -10/Materials | Discovered new exit (range 12) 593 | -10/Materials | Entered another Materials area 593 | -9/Materials | Evolved 2 slots: Power x1, Utility x1 1298 | -9/Materials | Lost 5 parts (2p1n2w) 2621 | -9/Materials | Core integrity fell below 50% 2971 | -9/Materials | Discovered new exit (range 5) 2974 | -9/Materials | Entered Storage 3031 | -9/Storage | Core integrity fell below 20% 3042 | -9/Storage | Destroyed by G-47 Trooper with Particle Gun Last Messages --------------- Imp. Flight Unit destroyed. Destroyed Imp. Flight Unit. Compression Vault explodes. Lgt. Ion Engine destroyed. Destroyed Lgt. Ion Engine. Datajack destroyed. Destroyed Datajack. Y-45 Defender destroyed. U-05 Engineer lays Concrete. The unstable cave ceiling collapses. U-05 Engineer lays Concrete. Imp. Flight Unit destroyed. Lgt. Ion Engine destroyed. Y-45 Defender destroyed. R-06 Scavenger collects Heat Sink. [Achievement: First Step to Greatness] The achievement interface (ESC then open Records) offers an effective way to explore all of your earned achievements as well as seek out new goals for future runs. Map ----- +----------------------------------------------------+ | ??????????????? #??? | | ??????????????????????#### #??? | | ?????????????????????????# #??? | | ?????????????????????????# #??? | | ?????????????????????????# #??? | | ??????????????????????#### #??? | | ??????????????????????# #??? | | ??????????????????????# ######+##??? | | ??????????????????????# #??????????? | | ??????????????????????# #??????????? | | ??????????????#######?# #??????????? | | ??????????????# #?# #??????????? | | ??????????????# """ ### #??????????? | | ??????????????# """ "## #??????????? | | ??????????????# """ T## #??????????? | | ??????????????# "## #??????????? | | ??????????????# """ ### #??????????? | | ??????????????# """ ### #??????????? | | ??????????????# """ + #??????????? | | ??????????????# ### #??????????? | | ??????????????# #?# #??????????? | | ??????????????# ###u####???????? | | ??????????????# ##*%!# ####????? | | ?????????? a ##+#### ==[ #????? | | ?????????? ! = #????? | | ?????????? g @ #????? | | ?????????? ##### * #????? | | ?????????##+##????# #????? | | ??????????????????# !%= =[#????? | | ??????????????????# ![%#???? | | ??????????????????# r !##???? | | ??????????????????#a =#????? | | ??????????????????# #####????? | | ??????????????????# Y######????????? | | ?????????????????? Y ??????????????? | | ?????????????????# ???????????????? | | ?????????????????# ???????????????? | | ?????????????????# ????????????????? | | ???????????????????????????????????? | | ???????????????????????????????????? | | ???????????????????????????????????? | | ???????????????????????????????????? | | ???????????????????????????????????? | | ???????????????????????????????????? | | ???????????????????????????????????? | | ???????????????????????????????????? | | ???????????????????????????????????? | | | | | | | +----------------------------------------------------+ Best States ------------- Heat Dissipation 38 Energy Generation 15 Energy Capacity 725 Matter Stores 256 Matter Capacity 300 Sight Range 16 Robot Scan Range 14 Terrain Scan Density 10 Armor Coverage 80 Evasion (%) 62 Targeting Accuracy 6 Recoil Reduction 2 Item Schematics ----------------- None Robot Schematics ------------------ None Fabricated ------------ Nothing Alien Tech Used ----------------- None Achievements -------------- Crack Shot First Step to Greatness Oops Risk Taker Challenges ------------ None Game ------ Seed ExoskeletonZhirovAutogun Manual? 0 Play Time 00:30:03 Cumulative 1.0 hours Start 2025.03.12 @ 19:12:40 End 2025.03.12 @ 20:55:29 Sessions 1 Manual Loads 0 Difficulty Rogue Special Mode None Game No. 2 Rogue 2 Adventurer 0 Explorer 0 Win Type - Total 0 Types 0/0/0/0/0/0/0/0/0 Lore% 2 Gallery% 4 Achievement% 3 Wizard Run 0 Options --------- Layout 1 ASCII 0 Keyboard 0 Movement Numpad Keybinds 0 Fullscreen 1 Font 32/Smallcaps Map View 50x35 Zoom Use 0% Tactical HUD 0 Map Filters NONE Filters NONE Steam 1 RUN: 5d326316-7bb1-4809-926d-f8be6a3ac4f3